[Event "CZE-ch 2020"]
[Site "Pilsen"]
[Date "2020.08.25"]
[Round "3.9"]
[White "Brejnik, Gustav"]
[Black "Hollan, Martin"]
[Result "1/2-1/2"]
[ECO "E04"]
[WhiteElo "2265"]
[BlackElo "2346"]
[Annotator "ChessBase"]
[PlyCount "72"]
[EventDate "2020.08.23"]
[EventType "swiss"]
[EventCountry "CZE"]
[SourceTitle "playchess.com"]
[Source "ChessBase"]
[SourceQuality "1"]
[TimeControl "40/5400+30:1800+30"]

1. d4 {[%emt 0:00:00]} Nf6 {[%emt 0:00:00]} 2. c4 {[%emt 0:00:00]} e6 {[%emt 0:00:00]} 3. Nf3 {[%emt 0:00:00]} d5 {[%emt 0:00:00]} 4. g3 {[%emt 0:00:00]} dxc4 {[%emt 0:00:00]} 5. Bg2 {[%emt 0:00:00]} a6 {[%emt 0:00:08]} 6. O-O {[%emt 0:00:19]} Nc6 {[%emt 0:00:16]} 7. e3 {[%emt 0:05:42]} Rb8 {[%emt 0:00:23]} 8. Nfd2 {[%emt 0:03:46]} Qd7 {[%emt 0:00:06]} 9. Nxc4 {[%emt 0:00:53]} b5 {[%emt 0:00:08]} 10. Ncd2 {[%emt 0:12:43]} Be7 {[%emt 0:01:40]} 11. b3 {[%emt 0:01:59]} O-O {[%emt 0:00:44]} 12. Bb2 {[%emt 0:01:11]} Rd8 {[%emt 0:01:41]} 13. Qe2 {[%emt 0:06:05]} Bb7 {[%emt 0:00:21]} 14. Rd1 {[%emt 0:00:43]} Nb4 {[%emt 0:10:16]} 15. Nf3 {[%emt 0:08:27]} c5 {[%emt 0:04:41]} 16. a3 {[%emt 0:14:56]} Nc6 {[%emt 0:01:26]} 17. Nc3 {[%emt 0:00:04]} cxd4 {[%emt 0:00:59]} 18. Nxd4 {[%emt 0:01:20]} Qe8 {[%emt 0:03:19]} 19. Nxc6 {[%emt 0:03:13]} Bxc6 {[%emt 0:02:04]} 20. Rac1 {[%emt 0:00:53]} Bxg2 {[%emt 0:15:32]} 21. Kxg2 {[%emt 0:00:06]} Rdc8 {[%emt 0:08:48]} 22. Nb1 {[%emt 0:17:19]} Rc6 {[%emt 0:03:29]} 23. Nd2 {[%emt 0:01:04]} Rbc8 {[%emt 0:00:41]} 24. Nf3 {[%emt 0:00:14]} Rxc1 {[%emt 0:00:35]} 25. Rxc1 {[%emt 0:00:01]} Rxc1 {[%emt 0:00:21]} 26. Bxc1 {[%emt 0:00:02]} Qc6 {[%emt 0:01:06]} 27. Bb2 {[%emt 0:00:01]} Qd5 {[%emt 0:06:57]} 28. Qc2 {[%emt 0:00:45]} Ne4 {[%emt 0:05:11]} 29. Kg1 {[%emt 0:04:56]} Nxg3 {[%emt 0:08:36]} 30. hxg3 {[%emt 0:00:34]} Qxf3 {[%emt 0:00:11]} 31. Qc8+ {[%emt 0:00:19]} Bf8 {[%emt 0:00:04]} 32. Bd4 {[%emt 0:02:32]} Qd1+ {[%emt 0:08:44]} 33. Kh2 {[%emt 0:00:02]} Qh5+ {[%emt 0:09:28]} 34. Kg1 {[%emt 0:00:02]} Qd1+ {[%emt 0:06:12]} 35. Kh2 {[%emt 0:00:08]} Qh5+ {[%emt 0:01:08]} 36. Kg1 {[%emt 0:00:12]} Qd1+ {[%emt 0:01:12]} 1/2-1/2

[Event "CZE-ch 2020"]
[Site "Pilsen"]
[Date "2020.08.25"]
[Round "3.10"]
[White "Gloser, David"]
[Black "Sorm, Daniel"]
[Result "1/2-1/2"]
[ECO "E59"]
[WhiteElo "2248"]
[BlackElo "2343"]
[Annotator "ChessBase"]
[PlyCount "61"]
[EventDate "2020.08.23"]
[EventType "swiss"]
[EventCountry "CZE"]
[SourceTitle "playchess.com"]
[Source "ChessBase"]
[SourceQuality "1"]
[TimeControl "40/5400+30:1800+30"]

1. d4 {[%emt 0:00:00]} Nf6 {[%emt 0:03:58]} 2. c4 {[%emt 0:00:00]} e6 {[%emt 0:02:05]} 3. Nc3 {[%emt 0:01:21]} Bb4 {[%emt 0:00:24]} 4. e3 {[%emt 0:03:52]} O-O {[%emt 0:02:46]} 5. Bd3 {[%emt 0:01:27]} d5 {[%emt 0:01:17]} 6. Nf3 {[%emt 0:02:29]} c5 {[%emt 0:02:45]} 7. O-O {[%emt 0:01:59]} Nc6 {[%emt 0:05:05]} 8. a3 {[%emt 0:03:44]} Bxc3 {[%emt 0:00:36]} 9. bxc3 {[%emt 0:00:08]} dxc4 {[%emt 0:02:55]} 10. Bxc4 {[%emt 0:00:44]} Qc7 {[%emt 0:00:53]} 11. Qe2 {[%emt 0:05:45]} e5 {[%emt 0:04:28]} 12. Nxe5 {[%emt 0:06:31]} Nxe5 {[%emt 0:00:23]} 13. dxe5 {[%emt 0:00:05]} Qxe5 {[%emt 0:00:26]} 14. h3 {[%emt 0:26:30]} Ne4 {[%emt 0:20:02]} 15. Bb2 {[%emt 0:00:30]} Be6 {[%emt 0:00:19]} 16. Bxe6 Qxe6 {[%emt 0:05:16]} 17. c4 {[%emt 0:08:13]} Rfd8 18. Rfd1 {[%emt 0:10:49]} Rd6 {[%emt 0:05:24]} 19. f3 {[%emt 0:00:37]} Ng3 {[%emt 0:01:15]} 20. Qf2 {[%emt 0:02:09]} Rad8 {[%emt 0:06:54]} 21. Rd5 Nf5 22. e4 {[%emt 0:02:03]} Ne7 {[%emt 0:00:51]} 23. Qxc5 {[%emt 0:00:55]} Nxd5 {[%emt 0:02:32]} 24. cxd5 {[%emt 0:00:04]} b6 {[%emt 0:01:30]} 25. Qd4 {[%emt 0:01:05]} Qg6 26. Rc1 {[%emt 0:02:46]} f6 {[%emt 0:04:00]} 27. Rc7 R6d7 {[%emt 0:02:30]} 28. Rc6 {[%emt 0:02:30]} Qf7 {[%emt 0:01:44]} 29. Qc4 {[%emt 0:01:34]} h6 {[%emt 0:01:12]} 30. a4 {[%emt 0:01:31]} Qf8 {[%emt 0:03:35]} 31. Qc3 {[%emt 0:03:18]} 1/2-1/2

[Event "CZE-ch 2020"]
[Site "Pilsen"]
[Date "2020.08.25"]
[Round "3.11"]
[White "Cerveny, Petr"]
[Black "Zeman, Matyas"]
[Result "1/2-1/2"]
[ECO "C67"]
[WhiteElo "2340"]
[BlackElo "2250"]
[Annotator "ChessBase"]
[PlyCount "62"]
[EventDate "2020.08.23"]
[EventType "swiss"]
[EventCountry "CZE"]
[SourceTitle "playchess.com"]
[Source "ChessBase"]
[SourceQuality "1"]
[TimeControl "40/5400+30:1800+30"]

1. e4 {[%emt 0:00:00]} e5 {[%emt 0:00:00]} 2. Nf3 {[%emt 0:00:00]} Nc6 {[%emt 0:00:00]} 3. Bb5 {[%emt 0:00:24]} Nf6 {[%emt 0:00:00]} 4. O-O {[%emt 0:00:19]} Nxe4 {[%emt 0:00:00]} 5. Re1 {[%emt 0:00:14]} Nd6 {[%emt 0:00:02]} 6. Nxe5 {[%emt 0:00:06]} Be7 {[%emt 0:00:07]} 7. Bf1 {[%emt 0:00:19]} Nf5 {[%emt 0:00:11]} 8. Nf3 {[%emt 0:03:04]} O-O {[%emt 0:00:05]} 9. d4 {[%emt 0:01:03]} d5 {[%emt 0:00:04]} 10. c3 {[%emt 0:01:31]} Re8 {[%emt 0:05:55]} 11. Bf4 {[%emt 0:04:20]} Bd6 {[%emt 0:00:57]} 12. Rxe8+ {[%emt 0:02:05]} Qxe8 {[%emt 0:00:05]} 13. Bxd6 {[%emt 0:01:00]} Nxd6 {[%emt 0:00:06]} 14. Qb3 {[%emt 0:01:09]} Be6 {[%emt 0:05:59]} 15. Nbd2 {[%emt 0:00:50]} f6 {[%emt 0:08:11]} 16. Re1 {[%emt 0:05:21]} Qd7 {[%emt 0:00:29]} 17. Bd3 {[%emt 0:04:49]} Bf7 {[%emt 0:02:25]} 18. Qc2 {[%emt 0:01:04]} g6 {[%emt 0:00:09]} 19. Nf1 {[%emt 0:00:58]} Re8 {[%emt 0:00:23]} 20. Rxe8+ {[%emt 0:00:58]} Qxe8 {[%emt 0:00:04]} 21. Ng3 {[%emt 0:00:28]} Kg7 {[%emt 0:01:43]} 22. h4 {[%emt 0:04:33]} Nd8 {[%emt 0:06:01]} 23. h5 {[%emt 0:02:34]} Ne6 {[%emt 0:00:31]} 24. hxg6 {[%emt 0:20:33]} hxg6 {[%emt 0:00:14]} 25. Ne2 {[%emt 0:00:25]} Qh8 {[%emt 0:05:34]} 26. b3 {[%emt 0:04:22]} Qh6 {[%emt 0:04:09]} 27. c4 {[%emt 0:04:39]} dxc4 {[%emt 0:01:29]} 28. Bxc4 {[%emt 0:11:01]} Nxc4 {[%emt 0:01:23]} 29. bxc4 {[%emt 0:00:31]} Ng5 {[%emt 0:01:14]} 30. Nxg5 {[%emt 0:03:16]} Qxg5 {[%emt 0:00:07]} 31. d5 {[%emt 0:13:10]} Qe5 1/2-1/2

[Event "CZE-ch 2020"]
[Site "Pilsen"]
[Date "2020.08.25"]
[Round "3.12"]
[White "Nytra, Ondrej"]
[Black "Mica, Marek"]
[Result "0-1"]
[ECO "C02"]
[WhiteElo "1925"]
[BlackElo "2315"]
[Annotator "ChessBase"]
[PlyCount "72"]
[EventDate "2020.08.23"]
[EventType "swiss"]
[EventCountry "CZE"]
[SourceTitle "playchess.com"]
[Source "ChessBase"]
[SourceQuality "1"]
[TimeControl "40/5400+30:1800+30"]

1. e4 {[%emt 0:00:00]} e6 {[%emt 0:00:00]} 2. d4 {[%emt 0:00:00]} d5 {[%emt 0:00:00]} 3. e5 {[%emt 0:00:00]} c5 {[%emt 0:00:03]} 4. c3 {[%emt 0:00:00]} Nc6 {[%emt 0:00:06]} 5. Nf3 {[%emt 0:00:00]} Bd7 {[%emt 0:00:19]} 6. Be2 {[%emt 0:01:04]} Nge7 {[%emt 0:00:13]} 7. O-O {[%emt 0:03:08]} cxd4 {[%emt 0:01:40]} 8. cxd4 {[%emt 0:00:08]} Nf5 {[%emt 0:00:08]} 9. b3 {[%emt 0:01:19]} Be7 {[%emt 0:01:12]} 10. Nc3 {[%emt 0:05:18]} h5 {[%emt 0:09:17]} 11. Be3 {[%emt 0:10:48]} Rc8 {[%emt 0:01:58]} 12. Bd3 {[%emt 0:05:53]} Ncxd4 {[%emt 0:42:04]} 13. Nxd4 {[%emt 0:02:30]} Nxe3 {[%emt 0:02:25]} 14. fxe3 {[%emt 0:00:05]} Rxc3 {[%emt 0:00:08]} 15. Nb5 {[%emt 0:08:28]} Rc5 {[%emt 0:03:34]} 16. Qf3 {[%emt 0:01:56]} Bxb5 {[%emt 0:04:50]} 17. Qxf7+ {[%emt 0:07:25]} Kd7 {[%emt 0:00:05]} 18. Bxb5+ {[%emt 0:02:35]} Rxb5 {[%emt 0:00:06]} 19. Qxg7 {[%emt 0:01:28]} Qg8 {[%emt 0:01:02]} 20. Rf7 {[%emt 0:00:17]} Qxg7 {[%emt 0:00:25]} 21. Rxg7 {[%emt 0:00:07]} Rf8 {[%emt 0:00:21]} 22. Rc1 {[%emt 0:01:36]} b6 {[%emt 0:00:56]} 23. Rh7 {[%emt 0:00:41]} Rf5 {[%emt 0:00:33]} 24. Rf1 {[%emt 0:00:21]} Rxf1+ {[%emt 0:00:37]} 25. Kxf1 {[%emt 0:00:06]} h4 {[%emt 0:00:15]} 26. Kf2 {[%emt 0:01:28]} Ra5 {[%emt 0:00:14]} 27. a4 {[%emt 0:00:12]} b5 {[%emt 0:00:10]} 28. axb5 {[%emt 0:00:21]} Rxb5 {[%emt 0:00:07]} 29. g4 {[%emt 0:00:09]} hxg3+ {[%emt 0:00:12]} 30. hxg3 {[%emt 0:00:08]} Rxb3 {[%emt 0:00:06]} 31. g4 {[%emt 0:00:03]} a5 {[%emt 0:00:18]} 32. g5 {[%emt 0:00:06]} a4 {[%emt 0:00:16]} 33. g6 {[%emt 0:00:16]} Rb8 {[%emt 0:00:17]} 34. g7 {[%emt 0:02:09]} Rg8 {[%emt 0:00:13]} 35. Kf3 {[%emt 0:00:02]} a3 {[%emt 0:00:25]} 36. Kf2 {[%emt 0:01:54]} Ke8 {[%emt 0:00:44]} 0-1

[Event "CZE-ch 2020"]
[Site "Pilsen"]
[Date "2020.08.25"]
[Round "3.14"]
[White "Vorisek, Jakub"]
[Black "Michalik, Peter"]
[Result "0-1"]
[ECO "C88"]
[WhiteElo "2205"]
[BlackElo "2593"]
[Annotator "ChessBase"]
[PlyCount "64"]
[EventDate "2020.08.23"]
[EventType "swiss"]
[EventCountry "CZE"]
[SourceTitle "playchess.com"]
[Source "ChessBase"]
[SourceQuality "1"]
[TimeControl "40/5400+30:1800+30"]

1. e4 {[%emt 0:00:00]} e5 {[%emt 0:00:00]} 2. Nf3 {[%emt 0:00:00]} Nc6 {[%emt 0:00:00]} 3. Bb5 {[%emt 0:00:17]} a6 {[%emt 0:00:00]} 4. Ba4 {[%emt 0:00:24]} Nf6 {[%emt 0:00:00]} 5. O-O {[%emt 0:00:30]} Be7 {[%emt 0:00:03]} 6. Re1 {[%emt 0:01:06]} b5 {[%emt 0:00:09]} 7. Bb3 {[%emt 0:00:41]} d6 {[%emt 0:00:08]} 8. h3 {[%emt 0:01:21]} O-O {[%emt 0:02:06]} 9. a4 {[%emt 0:03:01]} Bb7 {[%emt 0:05:35]} 10. d3 {[%emt 0:02:27]} Nd7 {[%emt 0:00:06]} 11. Be3 {[%emt 0:12:55]} Na5 {[%emt 0:13:11]} 12. Ba2 {[%emt 0:04:11]} bxa4 {[%emt 0:00:19]} 13. Nc3 {[%emt 0:02:39]} Nb6 {[%emt 0:00:06]} 14. Bxb6 {[%emt 0:04:31]} cxb6 {[%emt 0:00:05]} 15. Nxa4 {[%emt 0:00:16]} Nc6 {[%emt 0:06:01]} 16. Bd5 {[%emt 0:07:49]} b5 {[%emt 0:02:02]} 17. Nc3 {[%emt 0:00:17]} Qd7 {[%emt 0:00:06]} 18. Qd2 {[%emt 0:02:55]} Bd8 {[%emt 0:01:23]} 19. Nh2 {[%emt 0:05:41]} Bb6 {[%emt 0:03:13]} 20. Ng4 {[%emt 0:03:12]} Ne7 {[%emt 0:04:26]} 21. Qg5 {[%emt 0:17:31]} Kh8 {[%emt 0:01:32]} 22. Nf6 {[%emt 0:07:04]} gxf6 {[%emt 0:00:30]} 23. Qxf6+ {[%emt 0:00:07]} Kg8 {[%emt 0:00:03]} 24. Bxb7 {[%emt 0:00:46]} Qxb7 {[%emt 0:00:06]} 25. Nd5 {[%emt 0:00:18]} Bd8 {[%emt 0:06:08]} 26. Qxd6 {[%emt 0:01:26]} Ng6 {[%emt 0:10:47]} 27. Ra2 {[%emt 0:07:53]} a5 {[%emt 0:00:18]} 28. b4 {[%emt 0:02:17]} a4 {[%emt 0:05:44]} 29. c4 {[%emt 0:01:08]} Rc8 {[%emt 0:00:18]} 30. Ne3 {[%emt 0:03:48]} bxc4 {[%emt 0:02:34]} 31. dxc4 {[%emt 0:00:15]} Qxe4 {[%emt 0:01:29]} 32. Rxa4 {[%emt 0:01:31]} Rxc4 {[%emt 0:00:22]} 0-1

[Event "CZE-ch 2020"]
[Site "Pilsen"]
[Date "2020.08.25"]
[Round "3.15"]
[White "Simacek, Pavel"]
[Black "Ludvik, Tomas"]
[Result "1-0"]
[ECO "D31"]
[WhiteElo "2474"]
[BlackElo "2202"]
[Annotator "ChessBase"]
[PlyCount "61"]
[EventDate "2020.08.23"]
[EventType "swiss"]
[EventCountry "CZE"]
[SourceTitle "playchess.com"]
[Source "ChessBase"]
[SourceQuality "1"]
[TimeControl "40/5400+30:1800+30"]

1. d4 {[%emt 0:01:27]} d5 {[%emt 0:00:00]} 2. c4 {[%emt 0:00:34]} c6 {[%emt 0:00:00]} 3. Nc3 {[%emt 0:00:25]} e6 {[%emt 0:02:02]} 4. e4 {[%emt 0:02:45]} dxe4 {[%emt 0:00:33]} 5. Nxe4 {[%emt 0:00:09]} Bb4+ {[%emt 0:00:26]} 6. Bd2 {[%emt 0:01:10]} Qxd4 {[%emt 0:03:06]} 7. Bxb4 {[%emt 0:00:10]} Qxe4+ {[%emt 0:00:04]} 8. Be2 {[%emt 0:01:45]} Qxg2 {[%emt 0:06:30]} 9. Bf3 {[%emt 0:00:22]} Qg5 {[%emt 0:03:54]} 10. Ne2 {[%emt 0:00:57]} Nd7 {[%emt 0:08:25]} 11. Rg1 {[%emt 0:01:22]} Qf6 {[%emt 0:03:07]} 12. Bc3 {[%emt 0:08:06]} e5 {[%emt 0:04:20]} 13. Ng3 {[%emt 0:00:17]} g6 {[%emt 0:02:41]} 14. Ne4 {[%emt 0:01:34]} Qe6 {[%emt 0:02:33]} 15. Qd2 {[%emt 0:11:34]} f5 {[%emt 0:04:41]} 16. Nd6+ {[%emt 0:03:45]} Ke7 {[%emt 0:03:15]} 17. O-O-O {[%emt 0:01:56]} Ngf6 {[%emt 0:01:50]} 18. Qg5 {[%emt 0:08:42]} Kd8 {[%emt 0:14:34]} 19. Ba5+ {[%emt 0:12:59]} Ke7 {[%emt 0:04:48]} 20. Rge1 {[%emt 0:02:11]} Rg8 {[%emt 0:18:04]} 21. Bb4 {[%emt 0:03:22]} Kd8 {[%emt 0:02:35]} 22. Ba5+ {[%emt 0:12:34]} Ke7 {[%emt 0:00:17]} 23. Bh1 {[%emt 0:00:45]} Kf8 {[%emt 0:04:09]} 24. Bc3 {[%emt 0:01:32]} Rg7 {[%emt 0:02:39]} 25. f4 {[%emt 0:01:47]} e4 {[%emt 0:00:43]} 26. Bxe4 {[%emt 0:01:08]} h6 {[%emt 0:04:49]} 27. Qh4 {[%emt 0:00:35]} g5 {[%emt 0:02:26]} 28. Qxh6 {[%emt 0:00:17]} fxe4 {[%emt 0:00:29]} 29. Rxe4 {[%emt 0:00:34]} Qg4 {[%emt 0:00:45]} 30. Bxf6 {[%emt 0:01:08]} Nxf6 {[%emt 0:00:12]} 31. Qh8+ {[%emt 0:00:10]} 1-0

[Event "CZE-ch 2020"]
[Site "Pilsen"]
[Date "2020.08.25"]
[Round "3.16"]
[White "Houska, Jiri"]
[Black "Malinovsky, Karel"]
[Result "0-1"]
[ECO "D58"]
[WhiteElo "2202"]
[BlackElo "2474"]
[Annotator "ChessBase"]
[PlyCount "88"]
[EventDate "2020.08.23"]
[EventType "swiss"]
[EventCountry "CZE"]
[SourceTitle "playchess.com"]
[Source "ChessBase"]
[SourceQuality "1"]
[TimeControl "40/5400+30:1800+30"]

1. d4 {[%emt 0:00:00]} d5 {[%emt 0:00:00]} 2. c4 {[%emt 0:00:01]} e6 {[%emt 0:00:01]} 3. Nc3 {[%emt 0:00:19]} Be7 {[%emt 0:00:07]} 4. Nf3 {[%emt 0:00:18]} Nf6 {[%emt 0:00:11]} 5. Bg5 {[%emt 0:00:12]} h6 {[%emt 0:00:30]} 6. Bh4 {[%emt 0:00:29]} O-O {[%emt 0:00:10]} 7. e3 {[%emt 0:00:12]} b6 {[%emt 0:00:19]} 8. Be2 {[%emt 0:02:07]} Bb7 {[%emt 0:00:58]} 9. Bxf6 {[%emt 0:00:54]} Bxf6 {[%emt 0:00:09]} 10. cxd5 {[%emt 0:00:03]} exd5 {[%emt 0:00:32]} 11. b4 {[%emt 0:00:28]} c6 {[%emt 0:01:51]} 12. O-O {[%emt 0:00:41]} Re8 {[%emt 0:03:35]} 13. Qb3 {[%emt 0:01:25]} a5 {[%emt 0:06:46]} 14. bxa5 {[%emt 0:06:55]} Rxa5 {[%emt 0:00:08]} 15. a4 {[%emt 0:00:43]} Nd7 {[%emt 0:05:18]} 16. Rab1 {[%emt 0:01:52]} g6 {[%emt 0:02:19]} 17. h3 {[%emt 0:02:53]} Bg7 {[%emt 0:00:24]} 18. Bd3 {[%emt 0:00:36]} Bf8 {[%emt 0:07:13]} 19. Rfc1 {[%emt 0:21:11]} Bd6 {[%emt 0:13:30]} 20. Qc2 {[%emt 0:03:19]} Kg7 {[%emt 0:05:18]} 21. Nd2 {[%emt 0:03:46]} Ra8 {[%emt 0:09:03]} 22. Be2 {[%emt 0:04:49]} Nf8 {[%emt 0:07:22]} 23. Bf3 {[%emt 0:04:12]} h5 {[%emt 0:02:21]} 24. g3 {[%emt 0:05:23]} h4 {[%emt 0:07:25]} 25. g4 {[%emt 0:00:06]} Ne6 {[%emt 0:01:37]} 26. Bg2 {[%emt 0:00:06]} Bc7 {[%emt 0:02:46]} 27. f4 {[%emt 0:08:48]} c5 {[%emt 0:05:27]} 28. f5 {[%emt 0:01:30]} Ng5 {[%emt 0:06:17]} 29. Nf1 {[%emt 0:05:30]} cxd4 {[%emt 0:01:59]} 30. exd4 {[%emt 0:00:05]} Bf4 {[%emt 0:02:12]} 31. Re1 {[%emt 0:00:19]} Rxe1 {[%emt 0:01:46]} 32. Rxe1 {[%emt 0:00:06]} Qc7 {[%emt 0:01:02]} 33. Qd3 {[%emt 0:01:37]} Rc8 {[%emt 0:04:34]} 34. Nxd5 {[%emt 0:04:58]} Bxd5 {[%emt 0:00:06]} 35. Bxd5 {[%emt 0:00:10]} Qc3 {[%emt 0:00:58]} 36. Qxc3 {[%emt 0:06:45]} Rxc3 {[%emt 0:00:02]} 37. fxg6 {[%emt 0:03:07]} fxg6 {[%emt 0:01:01]} 38. Bg2 {[%emt 0:09:24]} Nxh3+ {[%emt 0:00:13]} 39. Bxh3 {[%emt 0:00:02]} Rxh3 {[%emt 0:00:09]} 40. Rb1 {[%emt 0:00:50]} Ra3 {[%emt 0:03:06]} 41. Rxb6 {[%emt 0:30:37]} Rxa4 {[%emt 0:30:10]} 42. Kg2 {[%emt 0:02:14]} Ra3 {[%emt 0:00:00]} 43. Rb2 {[%emt 0:00:00]} Kh6 {[%emt 0:00:00]} 44. Nh2 {[%emt 0:00:00]} h3+ {[%emt 0:00:00]} 0-1

[Event "CZE-ch 2020"]
[Site "Pilsen"]
[Date "2020.08.25"]
[Round "3.17"]
[White "Simek, Petr"]
[Black "Simet, Martin"]
[Result "0-1"]
[ECO "E68"]
[WhiteElo "2324"]
[BlackElo "2194"]
[Annotator "ChessBase"]
[PlyCount "50"]
[EventDate "2020.08.23"]
[EventType "swiss"]
[EventCountry "CZE"]
[SourceTitle "playchess.com"]
[Source "ChessBase"]
[SourceQuality "1"]
[TimeControl "40/5400+30:1800+30"]

1. c4 {[%emt 0:00:00]} d6 {[%emt 0:00:00]} 2. Nc3 {[%emt 0:00:13]} g6 {[%emt 0:01:02]} 3. g3 {[%emt 0:02:26]} Bg7 {[%emt 0:00:41]} 4. Bg2 {[%emt 0:00:06]} Nf6 {[%emt 0:01:12]} 5. Nf3 {[%emt 0:01:34]} O-O {[%emt 0:00:22]} 6. O-O {[%emt 0:00:16]} e5 {[%emt 0:01:40]} 7. d4 {[%emt 0:00:56]} Nbd7 {[%emt 0:03:15]} 8. e4 {[%emt 0:01:33]} a6 {[%emt 0:03:51]} 9. Qc2 {[%emt 0:05:31]} Rb8 {[%emt 0:03:32]} 10. Rd1 {[%emt 0:01:58]} Re8 {[%emt 0:02:59]} 11. dxe5 {[%emt 0:28:31]} dxe5 {[%emt 0:00:37]} 12. h3 {[%emt 0:00:07]} c6 {[%emt 0:04:10]} 13. Be3 {[%emt 0:01:25]} b5 {[%emt 0:05:48]} 14. c5 {[%emt 0:02:44]} a5 {[%emt 0:02:24]} 15. a4 {[%emt 0:01:23]} b4 {[%emt 0:01:49]} 16. Nb1 {[%emt 0:01:00]} b3 {[%emt 0:06:02]} 17. Qd3 {[%emt 0:02:22]} Qe7 {[%emt 0:02:04]} 18. Nfd2 {[%emt 0:00:24]} Nxc5 {[%emt 0:01:44]} 19. Qc3 {[%emt 0:00:31]} Nfd7 {[%emt 0:02:04]} 20. Qxa5 {[%emt 0:20:22]} Ba6 {[%emt 0:04:38]} 21. Ra3 {[%emt 0:14:08]} Bd3 {[%emt 0:03:34]} 22. Rc1 {[%emt 0:03:28]} Bc2 {[%emt 0:00:44]} 23. Qc3 {[%emt 0:00:10]} Nd3 {[%emt 0:09:39]} 24. Rf1 {[%emt 0:04:41]} Qe6 {[%emt 0:03:49]} 25. Nc4 {[%emt 0:04:52]} Bf8 {[%emt 0:00:48]} 0-1

[Event "CZE-ch 2020"]
[Site "Pilsen"]
[Date "2020.08.25"]
[Round "3.18"]
[White "Flajsman, Pavel"]
[Black "Stinka, Jakub"]
[Result "1-0"]
[ECO "B86"]
[WhiteElo "2184"]
[BlackElo "2299"]
[Annotator "ChessBase"]
[PlyCount "71"]
[EventDate "2020.08.23"]
[EventType "swiss"]
[EventCountry "CZE"]
[SourceTitle "playchess.com"]
[Source "ChessBase"]
[SourceQuality "1"]
[TimeControl "40/5400+30:1800+30"]

1. e4 {[%emt 0:00:00]} c5 {[%emt 0:00:00]} 2. Nf3 {[%emt 0:00:00]} d6 {[%emt 0:00:00]} 3. d4 {[%emt 0:00:00]} cxd4 {[%emt 0:00:00]} 4. Nxd4 {[%emt 0:00:00]} Nf6 {[%emt 0:00:00]} 5. Nc3 {[%emt 0:00:00]} e6 {[%emt 0:01:38]} 6. Bc4 {[%emt 0:00:38]} Be7 {[%emt 0:00:33]} 7. Be3 {[%emt 0:01:02]} a6 {[%emt 0:00:44]} 8. Bb3 {[%emt 0:02:20]} O-O {[%emt 0:01:56]} 9. Qe2 {[%emt 0:08:15]} b5 {[%emt 0:06:17]} 10. f3 {[%emt 0:16:18]} Bb7 {[%emt 0:06:46]} 11. g4 {[%emt 0:08:04]} Nfd7 {[%emt 0:03:37]} 12. O-O-O {[%emt 0:04:27]} Nc5 {[%emt 0:02:29]} 13. Rhg1 {[%emt 0:03:38]} Nbd7 {[%emt 0:05:47]} 14. g5 {[%emt 0:06:09]} Rc8 {[%emt 0:14:12]} 15. a3 {[%emt 0:17:42]} Nb6 {[%emt 0:16:28]} 16. Kb1 {[%emt 0:01:22]} Nxb3 {[%emt 0:09:52]} 17. cxb3 {[%emt 0:00:25]} d5 {[%emt 0:02:03]} 18. exd5 {[%emt 0:11:01]} Nxd5 {[%emt 0:02:03]} 19. Nxd5 {[%emt 0:00:19]} Bxd5 {[%emt 0:00:29]} 20. Bf4 {[%emt 0:02:29]} Bd6 {[%emt 0:05:23]} 21. Be5 {[%emt 0:04:47]} Bxe5 {[%emt 0:02:44]} 22. Qxe5 {[%emt 0:00:02]} Qc7 {[%emt 0:00:38]} 23. Qxc7 {[%emt 0:02:32]} Rxc7 {[%emt 0:00:01]} 24. Rge1 {[%emt 0:00:13]} Rd7 {[%emt 0:01:26]} 25. f4 {[%emt 0:00:36]} Rfd8 {[%emt 0:02:18]} 26. Rc1 {[%emt 0:07:47]} Rd6 {[%emt 0:05:44]} 27. Re3 {[%emt 0:00:16]} g6 {[%emt 0:00:44]} 28. Nf3 {[%emt 0:00:32]} Bxf3 {[%emt 0:01:28]} 29. Rxf3 {[%emt 0:00:01]} Rd3 {[%emt 0:00:55]} 30. Rxd3 {[%emt 0:01:37]} Rxd3 {[%emt 0:00:02]} 31. Rc3 {[%emt 0:00:01]} Rd4 {[%emt 0:01:32]} 32. Rc6 {[%emt 0:00:58]} a5 {[%emt 0:02:28]} 33. Rc5 {[%emt 0:00:22]} Rxf4 {[%emt 0:02:42]} 34. Rxb5 {[%emt 0:00:03]} h5 {[%emt 0:03:26]} 35. Rxa5 {[%emt 0:01:49]} h4 {[%emt 0:00:17]} 36. b4 {[%emt 0:01:14]} 1-0

[Event "CZE-ch 2020"]
[Site "Pilsen"]
[Date "2020.08.25"]
[Round "3.20"]
[White "Klement, Lukas"]
[Black "Nagy, Ladislav"]
[Result "1-0"]
[ECO "A14"]
[WhiteElo "2260"]
[BlackElo "2150"]
[Annotator "ChessBase"]
[PlyCount "89"]
[EventDate "2020.08.23"]
[EventType "swiss"]
[EventCountry "CZE"]
[SourceTitle "playchess.com"]
[Source "ChessBase"]
[SourceQuality "1"]
[TimeControl "40/5400+30:1800+30"]

1. Nf3 {[%emt 0:00:00]} Nf6 {[%emt 0:00:15]} 2. c4 {[%emt 0:00:00]} e6 {[%emt 0:00:36]} 3. g3 {[%emt 0:00:41]} d5 {[%emt 0:00:38]} 4. Bg2 {[%emt 0:00:32]} Be7 {[%emt 0:01:22]} 5. O-O {[%emt 0:00:18]} O-O {[%emt 0:01:24]} 6. d4 {[%emt 0:02:06]} dxc4 {[%emt 0:01:26]} 7. Qa4 {[%emt 0:01:03]} a6 {[%emt 0:01:48]} 8. Qxc4 {[%emt 0:00:22]} b5 {[%emt 0:00:33]} 9. Qc2 {[%emt 0:00:19]} Bb7 {[%emt 0:00:52]} 10. Bf4 {[%emt 0:03:39]} Nc6 {[%emt 0:02:16]} 11. Nbd2 {[%emt 0:09:19]} Nxd4 {[%emt 0:14:58]} 12. Nxd4 {[%emt 0:01:01]} Bxg2 {[%emt 0:00:50]} 13. Nxe6 {[%emt 0:04:46]} fxe6 {[%emt 0:03:12]} 14. Kxg2 {[%emt 0:00:23]} c5 {[%emt 0:02:50]} 15. Nf3 {[%emt 0:02:19]} Qb6 {[%emt 0:04:14]} 16. Be5 {[%emt 0:03:34]} Rad8 {[%emt 0:08:53]} 17. a4 {[%emt 0:05:24]} Nd5 {[%emt 0:05:43]} 18. axb5 {[%emt 0:02:07]} axb5 {[%emt 0:00:24]} 19. Qe4 {[%emt 0:02:19]} Bf6 {[%emt 0:03:56]} 20. Rfd1 {[%emt 0:07:43]} Bxe5 {[%emt 0:11:44]} 21. Qxe5 {[%emt 0:01:35]} h6 {[%emt 0:02:54]} 22. Rd3 {[%emt 0:05:39]} Nf6 {[%emt 0:02:13]} 23. Rda3 {[%emt 0:25:24]} Rd5 {[%emt 0:10:11]} 24. Qe3 {[%emt 0:02:42]} Rd6 {[%emt 0:02:54]} 25. Ra6 {[%emt 0:02:23]} Qc7 {[%emt 0:01:29]} 26. Ra7 {[%emt 0:01:55]} Qc6 {[%emt 0:01:31]} 27. R1a6 {[%emt 0:10:15]} Qd5 {[%emt 0:00:24]} 28. Rxd6 {[%emt 0:00:49]} Qxd6 {[%emt 0:00:02]} 29. h3 {[%emt 0:02:09]} Re8 {[%emt 0:04:07]} 30. Qa3 {[%emt 0:02:21]} Qc6 {[%emt 0:04:23]} 31. Qa5 {[%emt 0:00:33]} e5 {[%emt 0:02:16]} 32. Rc7 {[%emt 0:00:23]} Qd5 {[%emt 0:01:31]} 33. Qa7 {[%emt 0:00:21]} Nh5 {[%emt 0:01:27]} 34. Qxc5 {[%emt 0:00:43]} Qa8 {[%emt 0:01:08]} 35. Ra7 {[%emt 0:01:09]} Qe4 {[%emt 0:01:23]} 36. Qxb5 {[%emt 0:00:42]} Qg6 {[%emt 0:00:44]} 37. e4 {[%emt 0:00:53]} Nf6 {[%emt 0:01:07]} 38. Qc4+ {[%emt 0:00:19]} Kh8 {[%emt 0:00:25]} 39. Ra4 {[%emt 0:00:18]} h5 {[%emt 0:00:45]} 40. h4 {[%emt 0:00:44]} Ng4 {[%emt 0:00:28]} 41. Ra6 {[%emt 0:30:39]} Nf6 {[%emt 0:00:31]} 42. Ng5 {[%emt 0:00:00]} Rb8 {[%emt 0:01:32]} 43. Qc7 {[%emt 0:00:00]} Qe8 {[%emt 0:01:08]} 44. Rxf6 {[%emt 0:00:00]} gxf6 {[%emt 0:00:24]} 45. Qh7# 1-0